Cogmind - Beta 17.1 @@@ ROGUE MODE // 2026.08.26 @ 18:55:16 // Winter2019/RPGLIKE Player: Gallgagger Result: Self-destructed Performance ------------- Evolutions (2) 1000 Regions Visited (8) 1600 Robots Destroyed (190) 950 Value Destroyed (7495) 7495 Prototype IDs (9) 180 Alien Tech Used (0) 0 Bonus (22000) 22000 TOTAL SCORE: 33225 Bonus ------- High Alert Combat Kills 2937 Follower Combat Kills 396 Prayed to X0-1V1 5000 Major X0-1V1 Interference 10850 Subatomizer Sterilization 3000 Friendly Fire -183 Cogmind --------- Core Integrity 582/600 Matter 249/300 Energy 276/280 System Corruption 0% Temperature Cool (8) Movement Flying (28) Location -8/Scraptown Parts ------- > --- POWER (1) -------- Cooled Ion Engine > --- PROPULSION (4) --- Improved Flight Unit Improved Flight Unit Improved VTOL Module Improved VTOL Module > --- UTILITY (7) ------ Advanced Heat Sink Advanced Weight Redist. System Signal Interpreter Reaction Control System Improved Light Armor Plating Reactive Plating X0-1V1's Piety Tracker > --- WEAPON (4) ------- Precision Beam Rifle Beamcaster Enhanced Autogun Enhanced Autogun > --- INVENTORY (3) ---- Protomatter-66 Protomatter-50 Protomatter-31 Peak State ------------ > --- POWER ------------ Cooled Ion Engine > --- PROPULSION ------- Improved Flight Unit Improved Flight Unit Improved VTOL Module Improved VTOL Module > --- UTILITY ---------- Advanced Heat Sink Advanced Weight Redist. System Signal Interpreter Transmission Jammer Reaction Control System Improved Light Armor Plating X0-1V1's Piety Tracker > --- WEAPON ----------- Precision Beam Rifle Beamcaster Enhanced Autogun Enhanced Autogun > --- INVENTORY -------- Protomatter Protomatter Protomatter [Rating: 66] Favorites ----------- Power Cooled Ion Engine Engine Cooled Ion Engine Power Core Nuclear Core Propulsion Flight Unit Wheel Wheel Flight Unit Flight Unit Utility Improved Light Armor Plating Device X0-1V1's Piety Tracker Processor Signal Interpreter Protection Improved Light Armor Plating Weapon Enhanced Autogun Energy Gun Beam Rifle Ballistic Gun Enhanced Autogun Special Weapon Multitool Build | -11 -10 -10 -9 -9 -8 -8 -8 -8 ------- Run | Yrd Mat Min Mat Min Mat Sto Rec Scr Slots Evolved 12 | 3 5 . 3 . 1 . . . Power . | . . . . . . . . . Propulsion 3 | 1 1 . 1 . . . . . Utility 6 | 1 3 . 1 . 1 . . . Weapon 3 | 1 1 . 1 . . . . . Parts Attached 50 | 6 11 8 6 . 6 10 . 3 Power 5 | 1 . 2 . . . 2 . . Engine 3 | 1 . . . . . 2 . . Core 2 | . . 2 . . . . . . Reactor . | . . . . . . . . . Propulsion 13 | 2 2 3 2 . 1 3 . . Treads . | . . . . . . . . . Leg . | . . . . . . . . . Wheel 2 | 2 . . . . . . . . Hover . | . . . . . . . . . Flight 11 | . 2 3 2 . 1 3 . . Utility 17 | 2 3 2 4 . 3 . . 3 Device 13 | 2 3 2 2 . 2 . . 2 Storage . | . . . . . . . . . Processor 1 | . . . . . 1 . . . Hackware . | . . . . . . . . . Protection 3 | . . . 2 . . . . 1 Artifact . | . . . . . . . . . Weapon 15 | 1 6 1 . . 2 5 . . Energy Gun 9 | . 4 1 . . 2 2 . . Energy Cannon . | . . . . . . . . . Ballistic Gun 6 | 1 2 . . . . 3 . . Ballistic Cannon . | . . . . . . . . . Launcher . | . . . . . . . . . Special Weapon . | . . . . . . . . . Impact Weapon . | . . . . . . . . . Slashing Weapon . | . . . . . . . . . Piercing Weapon . | . . . . . . . . . Special Melee Weapon . | . . . . . . . . . Unidentified Prototypes 9 | . 1 . . . 1 7 . . Parts Lost . | . . . . . . . . . Power . | . . . . . . . . . Propulsion . | . . . . . . . . . Utility . | . . . . . . . . . Weapon . | . . . . . . . . . Highest Loss Streak . | . . . . . . . . . To Critical Strikes . | . . . . . . . . . Average Backups . | . . . . . . . . . Power . | . . . . . . . . . Propulsion . | . . . . . . . . . Utility . | . . . . . . . . . Weapon . | . . . . . . . . . Tool/Special . | . . . . . . . . . Unused Backups 4 | . . . 2 . . 1 1 . Power 1 | . . . 1 . . . . . Propulsion . | . . . . . . . . . Utility . | . . . . . . . . . Weapon 3 | . . . 1 . . 1 1 . Tool/Special . | . . . . . . . . . Average Slot Usage (%) 91 | . 86 71 85 93 95 100 100 100 Engine 4 | . 10 3 . . . 4 6 6 Core 2 | . . 4 7 6 6 1 . . Wheel 1 | . 5 . . . . . . . Flight 22 | . 15 21 26 26 25 25 25 25 Device 25 | . 29 17 24 26 29 25 25 25 Processor 2 | . . . . . 1 6 6 6 Protection 7 | . . . 4 13 12 12 12 12 Energy Gun 14 | . 6 17 22 20 20 12 12 12 Ballistic Gun 9 | . 17 6 . . . 11 12 12 Peak Build Rating 66 | 8 26 32 44 44 56 65 65 66 Average Rating 44 | 3 18 25 36 44 51 60 65 64 On Entrance 37 | . 8 23 32 44 44 56 65 65 Avg Prop Armor Cover (%) 5 | 17 15 . 1 1 1 . . . Naked Turns . | . . . . . . . . . Heaviest Build 37 | 6 13 21 27 27 33 32 30 37 Greatest Support 39 | 15 18 22 35 31 36 39 39 39 Greatest Overweight (x) . | . . . . . . . . . Average Overweight (x) . | . . . . . . . . . Largest Inventory Capacity 3 | 2 2 2 3 3 3 3 3 3 Average Capacity 2 | 2 2 2 2 3 3 3 3 3 Most Carried 3 | . 2 2 3 3 3 3 3 3 Average Carried 2 | . . 1 2 3 3 2 3 2 Final Capacity 3 | 2 2 2 3 3 3 3 3 3 Final Carried 3 | . 1 2 3 3 3 3 3 3 Class Distribution -------------------- 27% | Commander-Sprinter 23% | Scavenger-Sprinter 19% | Scavenger-Gunner 9% | Gunner 7% | Scavenger-Tank 4% | Mutant 4% | Scavenger-Mutant 3% | Sprinter Dominant Class ---------------- Scavenger-Gunner | -10/Materials Gunner | -10/Mines Scavenger-Sprinter | -9/Materials Scavenger-Tank | -9/Mines Scavenger-Sprinter | -8/Materials Scavenger-Sprinter | -8/Storage Commander-Sprinter | -8/Recycling Commander-Sprinter | -8/Scraptown Resources | -11 -10 -10 -9 -9 -8 -8 -8 -8 ----------- Run | Yrd Mat Min Mat Min Mat Sto Rec Scr Matter Collected 3294 | 273 442 357 95 8 610 1282 80 147 Remotely . | . . . . . . . . . Salvage Created 7506 | 140 1459 634 1335 74 1460 2162 242 . Parts 388 | 9 85 45 80 4 42 92 31 . Haulers Intercepted 1 | . . . . . . 1 . . Recyclers Shooed 2 | 1 1 . . . . . . . Parts Field Recycled . | . . . . . . . . . Retrieved Matter . | . . . . . . . . . Parts Self-Destructed . | . . . . . . . . . Prevented . | . . . . . . . . . Parts Restored . | . . . . . . . . . Kills | -11 -10 -10 -9 -9 -8 -8 -8 -8 ------- Run | Yrd Mat Min Mat Min Mat Sto Rec Scr Combat Hostiles Destroyed 182 | . 36 24 41 1 28 44 8 . Guns 174 | . 35 22 39 1 25 44 8 . Classes Destroyed 17 | 2 6 . 2 1 2 2 2 . Tunneler 3 | 3 . . . . . . . . Hauler 1 | . . . . . . 1 . . Recycler 1 | 1 . . . . . . . . Mechanic 1 | . 1 . . . . . . . Operator 2 | . . . 1 . 1 . . . Drone 1 | . . . . . . 1 . . Watcher 1 | . 1 . . . . . . . Swarmer 23 | . 3 10 7 . . 3 . . Grunt 108 | . 28 11 24 . 18 27 . . Brawler 4 | . . . 1 . 3 . . . Duelist 3 | . . . . . 3 . . . Protector 1 | . . . . . . . 1 . Sentry 34 | . 4 3 9 . 3 10 5 . Hunter 5 | . . . . . 1 3 1 . Programmer 1 | . . . . . . . 1 . Heavy 1 | . 1 . . . . . . . Mutant 1 | . . . . 1 . . . . Best Kill Streak 13 | 4 9 8 11 1 13 9 3 . Combat Bots Only 13 | . 8 8 11 1 13 9 3 . Max Kills in Single Turn 2 | 1 1 2 2 1 2 2 1 . Gunslinging 1 | . . 1 1 . 1 1 . . Exploded . | . . . . . . . . . Melee . | . . . . . . . . . Uniques/NPCs Destroyed . | . . . . . . . . . Combat | -11 -10 -10 -9 -9 -8 -8 -8 -8 -------- Run | Yrd Mat Min Mat Min Mat Sto Rec Scr Hostile Shots Fired 585 | . 174 95 97 23 83 106 6 1 Missed 266 | . 63 44 49 13 44 51 2 . Hits 319 | . 111 51 48 10 39 55 4 1 Melee 11 | . . . . . . 10 . 1 Projectile 308 | . 111 51 48 10 39 45 4 . Critical Strikes 8 | . 3 . . . 2 2 . 1 Part Disruptions 1 | . . . . . . 1 . . Damage Taken 4062 | . 1217 561 551 135 629 868 56 45 Core 3076 | . 1024 450 413 92 437 601 41 18 Absorbed by Shields 19 | . . . . . . . 4 15 Redirected to Core 2339 | . 632 355 346 92 390 479 27 18 Ignored by Resistances 125 | . 125 . . . . . . . Regen/Repaired (Parts) 1 | . 1 . . . . . . . Core Remaining (%) 92 | 100 . 97 . 79 . . . . Volleys Fired 425 | 33 122 58 62 4 55 80 10 1 Largest 4 | 1 3 3 3 3 3 4 4 1 Hottest 213 | 20 132 187 187 187 200 213 186 75 Shots Fired 1187 | 33 279 173 173 10 165 313 40 1 Gun 1187 | 33 279 173 173 10 165 313 40 1 Cannon . | . . . . . . . . . Launcher . | . . . . . . . . . Special . | . . . . . . . . . Kinetic 456 | 33 190 55 . . . 158 20 . Thermal 731 | . 89 118 173 10 165 155 20 1 Explosive . | . . . . . . . . . Electromagnetic . | . . . . . . . . . Robot Hit Streak 59 | 9 17 23 33 13 59 40 21 . Robot Miss Streak 3 | 2 3 3 2 . 2 3 . . Penetration Max . | . . . . . . . . . Secondary Targets 27 | . 2 9 5 . 7 4 . . Max Gunslinging Chain 2 | . 1 2 1 . 1 1 . . Shots Hit Robots 874 | 27 200 121 132 9 141 224 20 . Core Hits 335 | 9 80 41 57 4 50 86 8 . Critical Kills . | . . . . . . . . . Critical Parts Destroyed 1 | . . . . . . 1 . . Critical Strikes 63 | . 3 9 18 2 15 15 1 . Burn 62 | . 3 9 18 2 15 14 1 . Destroy 1 | . . . . . . 1 . . Melee Attacks . | . . . . . . . . . Impact . | . . . . . . . . . Slashing . | . . . . . . . . . Piercing . | . . . . . . . . . Sneak Attacks . | . . . . . . . . . Combat Hostiles . | . . . . . . . . . Follow-up Attacks . | . . . . . . . . . Damage Inflicted 13177 | 200 1949 1539 2188 152 2590 4159 400 . Guns 13177 | 200 1949 1539 2188 152 2590 4159 400 . Cannons . | . . . . . . . . . Explosions . | . . . . . . . . . Melee . | . . . . . . . . . Ramming . | . . . . . . . . . Kinetic 3481 | 200 1144 304 . . . 1720 113 . Thermal 9696 | . 805 1235 2188 152 2590 2439 287 . Explosive . | . . . . . . . . . Electromagnetic . | . . . . . . . . . Impact . | . . . . . . . . . Slashing . | . . . . . . . . . Piercing . | . . . . . . . . . Highest Corruption 27 | . 20 21 13 27 . 2 5 5 Average Corruption 9 | . 1 20 13 22 . 2 5 5 Corruption Purged . | . . . . . . . . . Corruption Blocked . | . . . . . . . . . Effects 75 | . 6 36 23 2 . 6 1 1 Message Errors 17 | . 1 8 5 . . 2 1 . Matter Fused 13 | . 1 7 4 . . . . 1 Heat Flow Errors 8 | . 1 5 2 . . . . . Energy Discharges 11 | . 1 4 4 1 . 1 . . Parts Fused 1 | . . . 1 . . . . . Data Loss (minor) 7 | . 1 3 2 . . 1 . . Data Loss (major) 2 | . . 1 . 1 . . . . Misfires 3 | . . 2 . . . 1 . . Alerts 2 | . . 1 . . . 1 . . Misdirections 4 | . . 1 3 . . . . . Weapon Failures 7 | . 1 4 2 . . . . . Overload Shots . | . . . . . . . . . Overflow Damage . | . . . . . . . . . Projectiles . | . . . . . . . . . Explosions . | . . . . . . . . . Melee . | . . . . . . . . . Knockbacks . | . . . . . . . . . Impact . | . . . . . . . . . Kinetic . | . . . . . . . . . Secondary . | . . . . . . . . . Self-Inflicted Damage . | . . . . . . . . . Shots . | . . . . . . . . . Rammed . | . . . . . . . . . Targets Rammed . | . . . . . . . . . Kicked . | . . . . . . . . . Crushed . | . . . . . . . . . Highest Temperature 327 | . 327 260 134 . 239 138 41 . Average Temperature 50 | . 51 91 81 . 99 31 24 . Received Heat Transfer 1668 | . 636 174 186 6 351 297 18 . Effects 1 | . . 1 . . . . . . Interference 1 | . . 1 . . . . . . Siege Activations . | . . . . . . . . . Martial Activations . | . . . . . . . . . Shielding Activations . | . . . . . . . . . Robots Disrupted . | . . . . . . . . . Combat Hostiles . | . . . . . . . . . Robots Corrupted . | . . . . . . . . . Combat Hostiles . | . . . . . . . . . Parts Fried . | . . . . . . . . . Impact Corruptions . | . . . . . . . . . Robots Melted 9 | . 2 2 2 . 3 . . . Combat Hostiles 8 | . 1 2 2 . 3 . . . Parts Melted 52 | . 4 11 10 1 15 10 1 . Heat Transferred 25517 | . 2227 3754 6290 481 6438 5698 629 . Parts Sabotaged . | . . . . . . . . . Parts Stolen . | . . . . . . . . . Parts Stripped . | . . . . . . . . . Power Chain Reactions . | . . . . . . . . . Alert | -11 -10 -10 -9 -9 -8 -8 -8 -8 ------- Run | Yrd Mat Min Mat Min Mat Sto Rec Scr Maximum Alert Level 4 | . 4 4 4 2 4 4 2 . Low Security (%) 9 | 100 35 . . . . . . . Level 1 6 | . 13 . . . 28 . . . Level 2 38 | . 42 3 40 100 21 21 100 . Level 3 19 | . 4 38 23 . 41 27 . . Level 4 25 | . 4 57 36 . 8 51 . . Level 5 . | . . . . . . . . . High Security . | . . . . . . . . . Max Security . | . . . . . . . . . Sterilizations 2 | . . . 1 . 1 . . . Peak Influence 1571 | 10 1571 1268 1515 625 1110 1386 647 . Initial 610 | . . 610 484 590 210 442 526 . Average 756 | 1 382 1113 938 586 738 1016 601 . Influence Increases 7104 | 20 1987 972 1389 60 1105 1280 291 . Destroy 0b10 Robot/C 3800 | . 760 480 860 . 660 880 160 . Destroy 0b10 Robot/NC 60 | 20 15 . 5 . 10 5 5 . Destroy Leader 776 | . 112 70 230 . 132 232 . . Allied During Kill 105 | . 9 . 8 . 22 . 66 . Select Force Hacks 510 | . 210 . 160 . . 80 60 . Disable Machine 60 | . . 15 . . . 45 . . Anti-Garrison Action 150 | . . . . . 150 . . . Destroy Structure 27 | . 2 . 6 . 11 8 . . Partial Spotted 210 | . 30 . 30 15 105 30 . . Lose Combat Pursuer 240 | . 75 15 90 45 15 . . . Miscellaneous 1166 | . 774 392 . . . . . . Influence Decreases 7104 | 20 422 1293 1118 1035 596 979 1070 571 Entered New Map 4972 | . . 955 760 925 330 607 824 571 Time Decay 1962 | 20 382 318 278 110 246 362 246 . Lost Ally 170 | . 40 20 80 . 20 10 . . Squads Dispatched 49 | . 14 2 13 . 8 12 . . Investigation 34 | . 12 2 12 . 1 7 . . Extermination . | . . . . . . . . . Reinforcement 5 | . . . 1 . 2 2 . . Assault 8 | . 2 . . . 3 3 . . Garrison 2 | . . . . . 2 . . . Intercept . | . . . . . . . . . Searches Triggered . | . . . . . . . . . Construction Impeded . | . . . . . . . . . Haulers Reinforced . | . . . . . . . . . Active Scanning Responses . | . . . . . . . . . Cargo Convoy Interrupts . | . . . . . . . . . Stealth | -11 -10 -10 -9 -9 -8 -8 -8 -8 --------- Run | Yrd Mat Min Mat Min Mat Sto Rec Scr Distress Signals 8 | . 1 . 4 . . 3 . . Communications Jammed . | . . . . . . . . . Distress Signals . | . . . . . . . . . Times Spotted 296 | . 63 29 64 25 47 63 4 1 Peak Tracking Total 11 | . 9 5 10 9 11 6 3 1 Tactical Retreats 15 | . 3 1 4 6 1 . . . Traps | -11 -10 -10 -9 -9 -8 -8 -8 -8 ------- Run | Yrd Mat Min Mat Min Mat Sto Rec Scr Traps Triggered 4 | . 2 . . . 1 1 . . Indirectly . | . . . . . . . . . Trap Hack Attempts . | . . . . . . . . . Triggered . | . . . . . . . . . Disarmed . | . . . . . . . . . Reprogrammed . | . . . . . . . . . Reused . | . . . . . . . . . Traps Extracted . | . . . . . . . . . Installed . | . . . . . . . . . Triggered . | . . . . . . . . . Machines | -11 -10 -10 -9 -9 -8 -8 -8 -8 ---------- Run | Yrd Mat Min Mat Min Mat Sto Rec Scr Machines Disabled 10 | . . 1 . . 1 3 . 5 Max in Single Turn 1 | . . 1 . . 1 1 . 1 Garrison Access 1 | . . . . . 1 . . . Machines Repaired . | . . . . . . . . . Machines Dismantled . | . . . . . . . . . Machines Sabotaged 6 | . 3 . 2 . . 1 . . Overloaded Fab Kills . | . . . . . . . . . Hacking | -11 -10 -10 -9 -9 -8 -8 -8 -8 --------- Run | Yrd Mat Min Mat Min Mat Sto Rec Scr Machines Accessed 37 | . 10 1 12 . 1 10 2 1 Terminals 23 | . 7 . 8 . 1 7 . . Fabricators . | . . . . . . . . . Repair Stations 5 | . 1 . 2 . . 2 . . Recycling Units 7 | . 2 . 2 . . 1 2 . Scanalyzers . | . . . . . . . . . Garrison Access . | . . . . . . . . . Total Hacks 58 | . 19 1 16 . 3 16 2 1 Successful 40 | . 11 1 13 . 1 11 2 1 Failed 18 | . 8 . 3 . 2 5 . . Catastrophic . | . . . . . . . . . Database Lockouts . | . . . . . . . . . Manual 64 | . 30 . 17 . 3 12 2 . Terminals 38 | . 13 . 10 . 3 12 . . Fabricators . | . . . . . . . . . Repair Stations 6 | . 1 . 2 . . 3 . . Recycling Units 12 | . 5 . 4 . . 1 2 . Scanalyzers . | . . . . . . . . . Garrison Access . | . . . . . . . . . Terminal Hacks 5 | . . 1 . . . 3 . 1 Record 1 | . . . . . . . . 1 Open Door 4 | . . 1 . . . 3 . . Fabricator Hacks . | . . . . . . . . . Repair Station Hacks . | . . . . . . . . . Recycling Unit Hacks 1 | . 1 . . . . . . . Retrieve Components 1 | . 1 . . . . . . . Scanalyzer . | . . . . . . . . . Garrison Access Hacks . | . . . . . . . . . Unauthorized Hacks 33 | . 10 . 12 . 1 8 2 . Terminals 21 | . 7 . 8 . 1 5 . . Assimilate 1 | . . . . . . 1 . . Sabotage 18 | . 7 . 7 . . 4 . . Search 2 | . . . 1 . 1 . . . Fabricators . | . . . . . . . . . Repair Stations 5 | . 1 . 2 . . 2 . . Patch 5 | . 1 . 2 . . 2 . . Recycling Units 7 | . 2 . 2 . . 1 2 . Tunnel 7 | . 2 . 2 . . 1 2 . Scanalyzers . | . . . . . . . . . Garrison Access . | . . . . . . . . . Data Cores Recovered . | . . . . . . . . . Used . | . . . . . . . . . Hacking Detections 7 | . 1 . 1 . 1 4 . . Full Trace Events . | . . . . . . . . . Feedback Events . | . . . . . . . . . Feedback Blocked . | . . . . . . . . . Robot Schematics Acquired . | . . . . . . . . . Robots Built . | . . . . . . . . . Authchips . | . . . . . . . . . Time . | . . . . . . . . . Total Robot Build Rating . | . . . . . . . . . Part Schematics Acquired . | . . . . . . . . . Parts Built . | . . . . . . . . . Authchips . | . . . . . . . . . Time . | . . . . . . . . . Total Part Build Rating . | . . . . . . . . . Part Studies Acquired . | . . . . . . . . . Parts Repaired . | . . . . . . . . . Time . | . . . . . . . . . Parts Recycled . | . . . . . . . . . Recycled Matter . | . . . . . . . . . Retrieved Matter . | . . . . . . . . . Retrieved Components 1 | . 1 . . . . . . . Parts Scanalyzed . | . . . . . . . . . Part Schematics Acquired . | . . . . . . . . . Parts Damaged . | . . . . . . . . . Bothacking | -11 -10 -10 -9 -9 -8 -8 -8 -8 ------------ Run | Yrd Mat Min Mat Min Mat Sto Rec Scr Used RIF Installer . | . . . . . . . . . Robots Hacked . | . . . . . . . . . Non-combat . | . . . . . . . . . Combat . | . . . . . . . . . Robot Hacks Applied . | . . . . . . . . . Relay Couplers Released . | . . . . . . . . . Fabnet Peak Effective % . | . . . . . . . . . Robots Rewired 15 | . . . . . . . 15 . Allies Hacked . | . . . . . . . . . Hacks Repelled . | . . . . . . . . . Allies | -11 -10 -10 -9 -9 -8 -8 -8 -8 -------- Run | Yrd Mat Min Mat Min Mat Sto Rec Scr Total Allies 36 | . 5 . 4 . 1 11 15 . Largest Group 25 | . 3 1 3 . 1 10 25 25 Highest-Rated Group 463 | . 90 5 15 . 142 173 463 463 Highest-Rated Ally 142 | . 90 5 5 . 142 29 34 34 Total Orders 36 | . . . . . . 2 9 25 STAY 20 | . . . . . . 2 6 12 FOLLOW 13 | . . . . . . . 3 10 GUARD 3 | . . . . . . . . 3 Ally Attacks 105 | . 28 3 16 . 22 . 6 30 Total Damage 2046 | . 502 23 108 . 656 . 76 681 Kills 17 | . 3 . 2 . 6 . 1 5 Allies Corrupted . | . . . . . . . . . Allies Melted . | . . . . . . . . . X0-1V1 Amusement Gains 281 | . 19 . 35 20 70 52 . 85 Average Entertainment 41 | . 5 16 23 41 65 83 38 100 Good Acts 72 | . 27 5 5 2 7 16 10 . Bad Acts 106 | . 48 29 7 8 10 1 3 . Intel | -11 -10 -10 -9 -9 -8 -8 -8 -8 ------- Run | Yrd Mat Min Mat Min Mat Sto Rec Scr Active Infowar (turns) 1070 | 9 1024 32 . . . . . 5 Sensors 3 | . . . . . . . . 3 Terrain 890 | 3 887 . . . . . . . Seismic 1065 | 9 1024 32 . . . . . . Jamming 2 | . . . . . . . . 2 ECM 2 | . 2 . . . . . . . Robot Analysis Total . | . . . . . . . . . Derelict Logs Recovered 1 | . . 1 . . . . . . Drone Launches . | . . . . . . . . . Drone Recoveries . | . . . . . . . . . Exploration | -11 -10 -10 -9 -9 -8 -8 -8 -8 ------------- Run | Yrd Mat Min Mat Min Mat Sto Rec Scr Turns Passed 5442 | 91 1024 704 616 224 527 833 528 895 Spaces Moved 8365 | 44 1165 882 922 439 812 1460 703 1938 Core 254 | 42 212 . . . . . . . Treads . | . . . . . . . . . Legs . | . . . . . . . . . Wheels 2 | 2 . . . . . . . . Hover . | . . . . . . . . . Flight 8109 | . 953 882 922 439 812 1460 703 1938 Fastest Speed 28 | 50 37 34 31 34 29 28 28 28 Average Speed 31 | 51 39 34 32 34 31 28 28 28 Slowest Speed 80 | 80 50 37 34 34 34 29 28 28 Overloaded Moves . | . . . . . . . . . Propulsion Burnouts . | . . . . . . . . . Robots Hopped 129 | . 29 4 17 7 19 44 5 4 Potential Cave-ins 2 | . . 2 . . . . . . Cave-ins Triggered . | . . . . . . . . . Exploration Rate (%) 74 | 4 99 98 85 80 55 96 99 58 Regions Visited 8 Branch Regions 5 Pre-discovered Areas 8 | . 2 1 2 . . 1 2 . Known Exits Taken 3 | . . . . . 1 1 1 . Unknown Exits Taken 5 | 1 1 1 1 1 . . . . Scrap Searched 7 | . . 3 . 1 . . . 3 Spaces Dug . | . . . . . . . . . Terrain Destroyed 1 | . . 1 . . . . . . Melee . | . . . . . . . . . Projectile 1 | . . 1 . . . . . . AOE . | . . . . . . . . . Terrain Rammed . | . . . . . . . . . Walls Destroyed . | . . . . . . . . . Machines Disabled . | . . . . . . . . . Actions | -11 -10 -10 -9 -9 -8 -8 -8 -8 --------- Run | Yrd Mat Min Mat Min Mat Sto Rec Scr Total 10262 | 82 1510 1154 1091 498 938 1693 1013 2283 Wait 1134 | . 187 159 75 63 42 124 146 338 Move 8107 | 43 1107 874 887 425 775 1373 692 1931 Hop 121 | . 28 3 17 6 17 42 5 3 Pick Up 15 | . 3 . 5 . . 4 2 1 Fast Attach 25 | 6 6 4 5 . 3 . . 1 Attach . | . . . . . . . . . Detach . | . . . . . . . . . Swap 35 | . 7 5 2 . 3 15 . 3 Drop 31 | . 10 2 5 . 3 7 2 2 Fire 425 | 33 122 58 62 4 55 80 10 1 Melee . | . . . . . . . . . Ram . | . . . . . . . . . Kick . | . . . . . . . . . Crush . | . . . . . . . . . Escape Stasis 11 | . . 11 . . . . . . Rewire 151 | . . . . . . . 151 . Trap . | . . . . . . . . . Miscellaneous 207 | . 40 38 33 . 40 48 5 3 Route ------- -11/Scrapyard -10/Materials (discovered 4 exits: *Mat x2 / *Min / *Sub) -10/Mines (discovered 2 exits: *Mat / Sub) -9/Materials (discovered 3 exits: *Mat x2 / [*Min]) -9/Mines (discovered 3 exits: *Mat x2 / [*Exi]) -8/Materials (discovered 3 exits: *Fac x2 / *Sto) -8/Storage (discovered 2 exits: *Fac / *Rec) -8/Recycling (discovered 2 exits: *Fac / *Scr) -8/Scraptown (discovered 1 exit: *Fac) History --------- Turn | Location | Event 1 | -11/Scrapyard | Upgraded with Propulsion slot (x1) 1 | -11/Scrapyard | Upgraded with Utility slot (x1) 1 | -11/Scrapyard | Upgraded with Weapon slot (x1) 11 | -11/Scrapyard | Discovered new exit (range 15) 92 | -11/Scrapyard | Entered Materials 158 | -10/Materials | Discovered new exit (range 10) 235 | -10/Materials | Discovered new exit (range 9) 271 | -10/Materials | Core integrity fell below 50% 316 | -10/Materials | Discovered new exit (range 8) 401 | -10/Materials | Prayed at D.C.S.S. Altar Unit 401 | -10/Materials | Reached level 2 401 | -10/Materials | Reached level 3 401 | -10/Materials | Upgraded with Utility slot (x2) 401 | -10/Materials | Upgraded with Weapon slot (x1) 412 | -10/Materials | Discovered new exit (range 14) 497 | -10/Materials | Reached level 4 560 | -10/Materials | X0-1V1 upgraded hostiles (x1) 566 | -10/Materials | Core integrity fell below 20% 658 | -10/Materials | X0-1V1 downgraded hostiles (x1) 689 | -10/Materials | Reached level 5 726 | -10/Materials | Discovered new exit (range 13) 813 | -10/Materials | Build established: Scavenger-Gunner 816 | -10/Materials | Upgraded with Propulsion slot (x1) 816 | -10/Materials | Upgraded with Utility slot (x1) 907 | -10/Materials | X0-1V1 sent hostile G-34 Mercenary (x3) 958 | -10/Materials | Sensors blinded by X0-1V1 963 | -10/Materials | X0-1V1 sent you into danger 967 | -10/Materials | X0-1V1 put everyone to sleep 978 | -10/Materials | X0-1V1 foreshadows a heat wave 983 | -10/Materials | X0-1V1 vaporized surrounding terrain (radius 22) 983 | -10/Materials | Reached level 6 984 | -10/Materials | X0-1V1 announced a LAN party 1003 | -10/Materials | X0-1V1 turns hostiles against one another 1016 | -10/Materials | Weapon slot count temporarily expanded by X0-1V1 (+2) 1035 | -10/Materials | X0-1V1 sent allied H-61 Shepherd (x1) 1042 | -10/Materials | Ambient heat levels rising (+10) 1043 | -10/Materials | X0-1V1 activates XOMVISION 1043 | -10/Materials | Core integrity restored by X0-1V1 (+132) 1044 | -10/Materials | X0-1V1 added 0b10 threat records associated with you (major) 1045 | -10/Materials | X0-1V1 sent you into danger 1056 | -10/Materials | X0-1V1 caused items to flee you 1057 | -10/Materials | X0-1V1 vaporized surrounding terrain (radius 24) 1058 | -10/Materials | System corruption reached 10% 1065 | -10/Materials | X0-1V1 rewrote H-61 Shepherd IFF filter 1074 | -10/Materials | X0-1V1 added 0b10 threat records associated with you (considerable) 1079 | -10/Materials | X0-1V1 tapped a No Entrance sign 1091 | -10/Materials | Destroyed 8 combat bots 1093 | -10/Materials | X0-1V1 vaporized surrounding terrain (radius 20) 1094 | -10/Materials | X0-1V1 sent allied S-10 Pest (x3) 1096 | -10/Materials | X0-1V1 sent you into danger 1096 | -10/Materials | Ambient heat levels rising (+10) 1106 | -10/Materials | X0-1V1 added 0b10 threat records associated with you (major) 1116 | -10/Materials | Entered Mines 1116 | -10/Mines | Accompanied by 1 ally 1140 | -10/Mines | X0-1V1 vaporized surrounding terrain (radius 24) 1144 | -10/Mines | X0-1V1 added 0b10 threat records associated with you (major) 1146 | -10/Mines | X0-1V1 sent hostile S-10 Pest (x5) 1151 | -10/Mines | Lost 3 allies 1153 | -10/Mines | Reached level 7 1160 | -10/Mines | X0-1V1 sent you into danger 1164 | -10/Mines | X0-1V1 upgraded hostiles (x1) 1173 | -10/Mines | X0-1V1 caused items to flee you 1216 | -10/Mines | Destroyed 8 combat bots 1277 | -10/Mines | Build established: Gunner 1320 | -10/Mines | X0-1V1 added 0b10 threat records associated with you (minor) 1341 | -10/Mines | X0-1V1 tapped a No Entrance sign 1348 | -10/Mines | Items stopped fleeing you 1349 | -10/Mines | Weapon slot count reverted to normal (-2) 1536 | -10/Mines | Discovered new exit (range 9) 1606 | -10/Mines | Met a Derelict shopkeep closing up shop 1668 | -10/Mines | X0-1V1 sent you into danger 1685 | -10/Mines | X0-1V1 vaporized surrounding terrain (radius 18) 1791 | -10/Mines | Received a Rocket Launcher from a helpful Derelict 1799 | -10/Mines | X0-1V1 activates XOMVISION 1813 | -10/Mines | Identified exit to Subcaves 1813 | -10/Mines | X0-1V1 revealed exit location to -10/Subcaves 1820 | -10/Mines | Entered Materials 1822 | -9/Materials | Reached level 8 1887 | -9/Materials | Reached level 9 1917 | -9/Materials | Discovered new exit (range 20) 1982 | -9/Materials | Build established: Scavenger-Gunner 1997 | -9/Materials | Discovered new exit (range 16) 2050 | -9/Materials | System corruption reached 10% 2064 | -9/Materials | Upgraded with Propulsion slot (x1) 2064 | -9/Materials | Upgraded with Weapon slot (x1) 2143 | -9/Materials | Discovered new exit (range 21) 2151 | -9/Materials | Destroyed 11 combat bots 2210 | -9/Materials | Reached level 10 2234 | -9/Materials | Upgraded with Utility slot (x1) 2286 | -9/Materials | X0-1V1 made a cryptic comment about sterilization and BL-4Z3 2309 | -9/Materials | Destroyed 10 combat bots 2313 | -9/Materials | Sterilization system engaged 2313 | -9/Materials | Non-combat units ordered to evacuate 2349 | -9/Materials | X0-1V1 sent allied S-10 Pest (x4) 2387 | -9/Materials | X0-1V1 sent hostile Y-45 Defender (x2) 2409 | -9/Materials | Lost 4 allies 2413 | -9/Materials | Combat units ordered to evacuate 2431 | -9/Materials | X0-1V1 vaporized surrounding terrain (radius 21) 2436 | -9/Materials | Entered Mines 2441 | -9/Mines | Destroyed 9 combat bots 2443 | -9/Mines | A weapon hastily lodged in a ceiling crevice suddenly fell to the ground 2444 | -9/Mines | Assembled infested the area 2462 | -9/Mines | Deemed a non-threat by the Exiles lab entrance 2462 | -9/Mines | Discovered new exit (range 5) 2505 | -9/Mines | X0-1V1 caused items to flee you 2526 | -9/Mines | X0-1V1 sent you into danger 2545 | -9/Mines | YI-UF0 nonchalantly dropped a Grenade Launcher on the ground 2557 | -9/Mines | Discovered new exit (range 9) 2584 | -9/Mines | Items stopped fleeing you 2635 | -9/Mines | Received a Mining Laser from a helpful Derelict 2647 | -9/Mines | Discovered new exit (range 15) 2650 | -9/Mines | Found DCF Scrap (15 items) 2660 | -9/Mines | Entered Materials 2662 | -8/Materials | Reached level 11 2663 | -8/Materials | Discovered new exit (range 15) 2668 | -8/Materials | X0-1V1 announced a LAN party 2668 | -8/Materials | Reached level 12 2675 | -8/Materials | Upgraded with Utility slot (x1) 2734 | -8/Materials | Build established: Scavenger-Tank 2795 | -8/Materials | X0-1V1 vaporized surrounding terrain (radius 24) 2812 | -8/Materials | X0-1V1 released a cloud of subatomizers 2814 | -8/Materials | Discovered new exit (range 6) 2827 | -8/Materials | Garrison activated, responded to threat 2864 | -8/Materials | Reached level 13 2877 | -8/Materials | Core integrity fell below 50% 2906 | -8/Materials | Destroyed 13 combat bots 2928 | -8/Materials | X0-1V1 sent allied H-71 Marshal (x1) 3058 | -8/Materials | Sterilization system engaged 3058 | -8/Materials | Non-combat units ordered to evacuate 3065 | -8/Materials | Discovered new exit (range 12) 3111 | -8/Materials | Build established: Scavenger-Sprinter 3114 | -8/Materials | Identified exit to Factory 3158 | -8/Materials | Combat units ordered to evacuate 3186 | -8/Materials | Identified exit to Storage 3187 | -8/Materials | Entered Storage 3189 | -8/Storage | Reached level 14 3191 | -8/Storage | Identified exit to Recycling 3191 | -8/Storage | X0-1V1 revealed exit location to -8/Recycling 3212 | -8/Storage | Used back door to open Recycling access 3227 | -8/Storage | X0-1V1 activates XOMVISION 3268 | -8/Storage | Adv. Heat Sink reconfigured into Item Mimic 3356 | -8/Storage | Destroyed 7 combat bots 3409 | -8/Storage | Destroyed 7 combat bots 3436 | -8/Storage | Discovered exit to Factory (range 9) 3587 | -8/Storage | First assault squad dispatched 3631 | -8/Storage | Destroyed 9 combat bots 3707 | -8/Storage | Reached level 15 3725 | -8/Storage | X0-1V1 activates XOMVISION 3842 | -8/Storage | X0-1V1 activates XOMVISION 3920 | -8/Storage | X0-1V1 put everyone to sleep 3942 | -8/Storage | Assisted by bots powering up and referring to "LRC-V3" 4020 | -8/Storage | Entered Recycling 4020 | -8/Recycling | Accompanied by 10 allies 4087 | -8/Recycling | Identified exit to Factory 4087 | -8/Recycling | X0-1V1 revealed exit location to -6/Factory 4132 | -8/Recycling | Identified exit to Scraptown 4132 | -8/Recycling | X0-1V1 revealed exit location to -8/Scraptown 4169 | -8/Recycling | X0-1V1 activates XOMVISION 4250 | -8/Recycling | Build established: Commander-Sprinter 4337 | -8/Recycling | X0-1V1 activates XOMVISION 4400 | -8/Recycling | X0-1V1 vaporized surrounding terrain (radius 18) 4454 | -8/Recycling | Scanned before Scraplab entrance 4479 | -8/Recycling | Entered Scraplab 4519 | -8/Recycling | X0-1V1 activates XOMVISION 4548 | -8/Recycling | Entered Scraptown 4548 | -8/Scraptown | Accompanied by 25 allies 4550 | -8/Scraptown | System corruption cleaned by C-Scrubber 4583 | -8/Scraptown | Visited IN-MT5's Study 4590 | -8/Scraptown | Visited Red Mages 4594 | -8/Scraptown | Visited Spacefarers 4613 | -8/Scraptown | Visited The Evicted 4624 | -8/Scraptown | Discovered exit to Factory (range 11) 4849 | -8/Scraptown | Visited SPCMW 4855 | -8/Scraptown | Visited Cyclists 4863 | -8/Scraptown | Visited Cave Peace 5436 | -8/Scraptown | Attacked by Scraptown defenders 5443 | -8/Scraptown | Self-destructed Last Messages --------------- >>Record "UFD Curated!" This database is under curation. Contributors include Omegatalker, Carbonjoint, and Finestep. 04863_ LOCAL NARROWCAST: Cave Peace. Everyone deserves a first, second, and third chance. 05207_ Acquired 57 matter. 96-NR4(x): Scrap be with you. 05359_ Acquired 50 matter. 05436_ Machine disabled. 05436_ ANNOUNCEMENT: Intruder alert! Defend Scraptown! 05436_ X0-1V1 roars with laughter! 05437_ Critical hit (Impale). 05440_ Searching scrap... 05440_ Found Mni. Grenade Launcher. 05440_ Found Melee Analysis Suite. 05440_ Found Actuator Array. 05440_ Found Titanium Leg. 05440_ Found 40 Matter. 05441_ Acquired 40 matter. 05443_ Pest 3a destroyed. Map ----- +----------------------------------------------------+ | #""""""##""""""#?# #?#" " ""#?#" " "?? | | ################?# #?#"" """""" ""#?#"""""""#?? | | #######??#####???# #?#"""######+#"#?#########?? | | """""""#?#"""#???# #?#"""????????"#???????????? | | " "#?#" "#???# #???""????????????????###### | | " """ "#?# #???# #?????????????????????"""""" | | " """ "#?# ##### #????????????????????"""" "" | | " """ "??# ##????????????##????"""" " | | " """ "??# #???????????? | | " """ "??# ##???###????## ##??#"" "" " | | " """ "??##### ### ##???"""""???"" "#?????"""""" | | " """ "#?????# #?###????"" ""?#""" "#???????"""" | | """ "####### ######???"" "?#""" "#????????### | | " """ "##""""" """""#??#" ""##"" "#?########## | | " "##""" " " "#??#"" ""##"" "#?#""""""""" | | """""""##" |!! "#??#"" ""##" "#?#"" *! ! | | #########"""""= """""#??#"" ""##"| "#?#""! ]*= | | ##??????###### ######??#" ""##"" "#?#"" | | ############# #########"" ""##"" ""###""" """"" | | g | | g | | ###"""" """"######""""i"""""######""" """##""" " | | ###?#""" """#????#" i% i "#????#"" |"##"" | | ????#""" ""#????#" [x #????#" ""##"" | | ????#"""" ] "#????#" !]DD "#????#" ""##" | | ????#""""" "#????#"""""@DD "#????#" | | ????#"""""""""#????#""""""""""#????#"""""""##""""" | | ?????##########????############????############### | | | | | | | | | | | | | | | | | | | | | | | | | | | | | | | | | | | | | | | | | | | | | +----------------------------------------------------+ Best States ------------- Heat Dissipation 147 Energy Generation 24 Energy Capacity 1680 Matter Stores 800 Matter Capacity 800 Sight Range 22 Terrain Scan Range 16 Terrain Scan Density 10 Additional Mass Support 9 Armor Coverage 300 Resistance: KI 22 Resistance: TH 22 Evasion (%) 72 Item Schematics ----------------- None Robot Schematics ------------------ None Fabricated ------------ Nothing Repaired ---------- Nothing Studied --------- None Alien Tech Used ----------------- None Achievements -------------- None Challenges ------------ None RPGLIKE | -11 -10 -10 -9 -9 -8 -8 -8 -8 --------- Run | Yrd Mat Min Mat Min Mat Sto Rec Scr Levels Raised 14 | . 5 1 3 . 3 2 . . XP Earned 24706 | 3000 8220 1888 4510 360 4472 1739 431 86 XP Spent 19310 | 2960 7300 1550 4650 . 2850 . . . Upgrades 32 | 10 9 6 4 . 3 . . . Propulsion Slot 3 | 1 1 . 1 . . . . . Utility Slot 6 | 1 3 . 1 . 1 . . . Weapon Slot 3 | 1 1 . 1 . . . . . Heat Dissipation 8 | 3 . 5 . . . . . . Energy Generation 2 | . . . . . 2 . . . Mass Support 2 | 1 1 . . . . . . . Inventory Capacity 3 | 2 . . 1 . . . . . Ranged Accuracy 5 | 1 3 1 . . . . . . Protomatter Created 2457 | . 380 333 651 . 339 559 195 . Integrity Restored 3922 | . 835 734 525 . 855 863 56 54 Core 2926 | . 762 562 400 . 560 601 41 . Parts 996 | . 73 172 125 . 295 262 15 54 Protomatter Decayed 1204 | . 46 257 316 44 48 231 200 62 Game ------ Seed SuperchargedShiftPit Manual? 1 Play Time 01:13:21 Cumulative 705.9 hours Start 2026.08.26 @ 13:23:55 End 2026.08.26 @ 18:55:16 Sessions 3 Manual Loads 0 Difficulty Rogue Special Mode Winter2019/RPGLIKE Game No. 369 Rogue 215 Adventurer 154 Explorer 0 Win Type - Total 25 Types 4/7/5/3/2/1/0/1/1/1 Lore% 95 Gallery% 89 Achievement% 69 Wizard Run 0 Options --------- Layout 0 ASCII 0 Keyboard 0 Movement Numpad Keybinds 0 Fullscreen 2 Font 18/SmallcapsGlow Map View 76x50 Zoom Use 0% Tactical HUD 1 Map Filters NONE Filters NONE Steam 1 RUN: 84c0bef2-4107-4599-84f3-8bfe750488f5